bitfinex/quotes_SOLUSD_20251127
["timestamp","ask_amount","ask_price","bid_price","bid_amount"]
[1764239889747,2.80368955,141.74,141.71,5.48563043]
[1764239890149,0.71,141.73,141.69,36.09598433]
[1764239890326,0.71,141.73,141.69,18.45255355]
[1764239891651,0.71,141.73,141.7,24.70007057]
[1764239891836,0.71,141.73,141.7,7.05716302]
[1764239893244,0.71,141.73,141.7,5.41657564]
[1764239894552,0.71,141.73,141.7,23.05948319]
[1764239894731,3.12,141.74,141.71,2.14368955]
[1764239894932,0.71,141.73,141.71,2.14368955]
[1764239895756,0.71,141.73,141.7,25.20317274]
[1764239896369,0.71,141.73,141.7,19.7865971]
[1764239897470,0.71,141.73,141.7,26.84376012]
[1764239897965,0.71,141.73,141.7,24.70007057]
[1764239899470,0.71,141.73,141.7,22.49032947]
[1764239900644,0.71,141.73,141.7,24.63401902]
[1764239902375,2.85368955,141.73,141.7,7.05716302]
[1764239902546,2.85368955,141.73,141.69,16.308864]
[1764239902747,2.85368955,141.72,141.68,17.6446934]
[1764239902947,0.71,141.72,141.68,19.78838295]
[1764239903166,0.71,141.71,141.68,19.78838295]
[1764239904369,0.71,141.71,141.69,7.05766109]
[1764239905758,0.71,141.71,141.68,19.78838295]
[1764239906965,0.71,141.71,141.68,24.70285263]
[1764239907265,0.71,141.71,141.65,8.80994492]
[1764239907266,2.85368955,141.71,141.66,9.20284527]
[1764239907644,0.71,141.7,141.66,26.85073458]
[1764239908757,0.71,141.7,141.66,19.79157886]
[1764239909754,0.71,141.7,141.66,24.70704503]
[1764239910071,2.14368955,141.69,141.66,7.05915572]
[1764239910278,0.71,141.7,141.66,7.05915572]
[1764239910449,0.71,141.69,141.66,7.05915572]
[1764239911867,0.71,141.69,141.66,5.69682209]
[1764239912376,0.71,141.69,141.66,9.04760773]
[1764239914249,0.71,141.69,141.66,5.69682209]
[1764239914970,0.71,141.69,141.65,37.30815338]
[1764239916676,0.71,141.69,141.66,7.05915572]
[1764239917874,0.71,141.69,141.65,37.30815338]
[1764239919272,0.71,141.69,141.66,24.70704503]
[1764239920882,3.35078564,141.72,141.67,3.35078564]
[1764239921086,3.12,141.71,141.67,1.61902265]
[1764239921298,3.78,141.71,141.67,1.61902265]
[1764239921590,0.66,141.7,141.67,1.61902265]
[1764239922794,0.66,141.7,141.68,7.05815923]
[1764239924096,0.66,141.7,141.67,1.61902265]
[1764239924296,0.66,141.7,141.66,20.99867495]
[1764239925460,0.66,141.7,141.66,24.70704503]
[1764239925688,0.66,141.7,141.66,28.05783067]
[1764239926860,0.66,141.71,141.67,3.35078564]
[1764239927060,0.66,141.7,141.67,2.3296074]
[1764239928071,0.66,141.7,141.68,7.05815923]
[1764239928486,0.66,141.73,141.69,3.35078564]
[1764239928786,0.66,141.72,141.71,3.35078564]
[1764239929583,0.66,141.72,141.7,3.35078564]
[1764239930164,0.66,141.72,141.7,2.06190255]
[1764239930691,0.66,141.75,141.71,3.35078564]
[1764239930894,0.66,141.75,141.73,3.35078564]
[1764239931588,0.66,141.75,141.73,10.40626011]
[1764239933279,0.66,141.75,141.73,8.2433316]
[1764239934293,0.66,141.75,141.73,7.05547447]
[1764239936391,0.66,141.75,141.72,20.99057744]
[1764239937586,0.66,141.75,141.73,7.05547447]
[1764239939492,0.66,141.75,141.73,6.0079359]
[1764239940678,0.66,141.76,141.73,26.99789461]
[1764239941376,0.66,141.76,141.73,23.64710897]
[1764239942471,0.66,141.76,141.73,17.63917307]
[1764239944495,0.1,141.84,141.75,23.01043528]
[1764239944792,0.1,141.84,141.83,28.46959456]
[1764239944985,0.1,141.84,141.82,3.35078564]
[1764239945183,0.78,141.84,141.81,19.65964964]
[1764239945402,0.78,141.84,141.81,17.72130106]
[1764239945588,0.78,141.84,141.82,3.35078564]
[1764239946501,0.78,141.84,141.83,3.35078564]
[1764239947286,0.1,141.84,141.83,3.35078564]
[1764239948581,0.1,141.84,141.83,26.71034413]
[1764239951594,0.1,141.84,141.83,19.65964964]
[1764239953203,0.1,141.84,141.83,26.71034413]
[1764239954689,0.1,141.84,141.83,25.49571767]
[1764239956488,0.79,141.84,141.83,25.49571767]
[1764239956805,0.1,141.84,141.83,25.49571767]
[1764239957697,0.1,141.84,141.83,24.20065849]
[1764239959118,0.79,141.84,141.83,24.20065849]
[1764239960207,4.14078564,141.84,141.79,17.63102965]
[1764239960405,0.79,141.84,141.82,3.35078564]
[1764239960612,0.69,141.83,141.82,3.35078564]
[1764239960806,0.69,141.83,141.81,3.35078564]
[1764239962090,0.1,141.84,141.82,3.35078564]
[1764239962414,0.69,141.83,141.79,8.80994492]
[1764239962914,0.79,141.84,141.79,8.80994492]
[1764239963409,0.79,141.84,141.83,3.35078564]
[1764239963813,0.79,141.84,141.83,0.87269433]
[1764239964516,0.79,141.84,141.83,7.92338882]
[1764239966828,0.79,141.84,141.83,3.35078564]
[1764239968398,0.79,141.84,141.82,3.35078564]
[1764239969422,0.79,141.84,141.83,7.05069449]
[1764239969799,0.79,141.84,141.82,3.35078564]
[1764239971625,0.79,141.84,141.83,10.40148013]
[1764239972620,0.79,141.84,141.83,9.18997506]
[1764239973023,0.79,141.84,141.83,2.13928057]
[1764239973727,0.1,141.84,141.83,2.13928057]
[1764239974026,0.79,141.84,141.83,23.35955849]
[1764239974528,0.79,141.84,141.83,7.05069449]
[1764239975929,0.79,141.84,141.82,5.41264471]
[1764239979110,0.79,141.84,141.81,19.76733349]
[1764239980638,0.79,141.84,141.82,7.05119165]
[1764239982143,0.79,141.84,141.82,5.91553411]
[1764239983238,0.79,141.84,141.82,8.05481468]
[1764239985143,0.79,141.84,141.81,19.76733349]
[1764239985521,0.79,141.84,141.82,2.13928057]
[1764239987413,0.79,141.84,141.82,9.19047222]
[1764239988230,0.79,141.84,141.82,2.13928057]
[1764239989326,0.79,141.84,141.83,7.05069449]
[1764239991247,0.79,141.84,141.82,2.13928057]
[1764239992423,0.79,141.84,141.83,7.05069449]
[1764239993939,0.1,141.84,141.83,7.05069449]
[1764239994120,0.1,141.84,141.83,9.18997506]
[1764239994325,0.1,141.84,141.83,2.13928057]
[1764239994727,0.76,141.84,141.83,2.13928057]
[1764239995453,0.76,141.84,141.83,9.18997506]
[1764239995946,0.1,141.84,141.83,9.18997506]
[1764239997759,0.1,141.84,141.83,8.87430438]
[1764240000633,0.1,141.84,141.83,7.84203821]
[1764240003843,0.1,141.84,141.83,18.44814457]
[1764240004938,0.1,141.84,141.83,25.49883906]
[1764240005642,0.1,141.86,141.84,8.80994492]
[1764240005945,0.1,141.86,141.85,10.94922549]
[1764240006147,0.1,141.87,141.86,8.80994492]
[1764240006338,0.1,141.88,141.87,2.13928057]
[1764240006552,1e-08,141.88,141.87,10.94922549]
[1764240006736,1e-08,141.88,141.87,10.7133077]
[1764240007361,1e-08,141.88,141.87,19.27042998]
[1764240007544,1e-08,141.88,141.86,12.97196904]
[1764240007545,0.1,141.91,141.9,18.44814457]
[1764240008036,1e-08,141.91,141.9,18.44814457]
[1764240008234,1e-08,141.92,141.9,28.31732993]
[1764240008455,0.1,141.93,141.91,5.23928057]
[1764240008655,0.1,141.93,141.92,8.80994492]
[1764240008855,0.8,141.93,141.92,2.13928057]
[1764240009256,0.1,141.93,141.91,8.80994492]
[1764240009556,0.1,141.93,141.92,2.13928057]
[1764240009776,0.1,141.93,141.92,0.37073479]
[1764240010335,0.1,141.93,141.92,3.19250474]
[1764240010546,0.1,141.93,141.92,10.23872796]
[1764240011358,0.1,141.93,141.92,12.00727374]
[1764240012841,0.1,141.93,141.92,9.48517041]
[1764240013045,0.77,141.93,141.92,7.34588984]
[1764240013244,0.77,141.93,141.92,7.04622322]
[1764240016068,0.77,141.93,141.91,2.13928057]
[1764240016953,0.77,141.93,141.92,7.04622322]
[1764240018948,0.77,141.93,141.91,2.13928057]
[1764240019141,0.77,141.93,141.9,17.61804087]
[1764240019358,0.77,141.93,141.91,2.13928057]
[1764240020471,0.77,141.93,141.92,2.13928057]
[1764240021554,0.77,141.93,141.92,9.18550379]
[1764240021965,0.77,141.93,141.92,7.28539066]
[1764240022368,0.1,141.93,141.92,7.28539066]
[1764240022746,0.77,141.93,141.92,7.28539066]
[1764240025072,0.77,141.93,141.92,8.22108921]
[1764240026875,0.1,141.93,141.92,8.22108921]
[1764240028077,0.1,141.93,141.92,2.13928057]
[1764240029071,0.1,141.93,141.92,9.18550379]
[1764240031151,0.1,141.93,141.92,7.33376377]
[1764240032571,0.1,141.93,141.92,10.3837395]
[1764240033457,0.1,141.93,141.92,32.16503214]
[1764240033658,0.1,141.93,141.92,53.12058929]
[1764240034081,0.1,141.93,141.92,35.50254842]
[1764240034268,0.1,141.93,141.92,28.4563252]
[1764240034464,0.1,141.93,141.92,31.89384148]
[1764240035283,0.1,141.93,141.92,38.9400647]
[1764240035463,0.1,141.93,141.92,35.50254842]
[1764240036483,0.1,141.93,141.92,32.16503214]
[1764240036675,0.1,141.93,141.92,35.50254842]
[1764240037270,0.1,141.93,141.92,32.84720294]
[1764240040362,0.1,141.93,141.92,31.27313057]
[1764240042192,1e-08,141.93,141.92,34.61064685]
[1764240043468,1e-08,141.93,141.92,30.03011978]
[1764240044970,1e-08,141.94,141.92,26.6926035]
[1764240045176,1e-08,141.94,141.93,3.1]
[1764240045378,1e-08,141.94,141.93,11.90994492]
[1764240045589,1e-08,141.94,141.93,14.73111782]
[1764240045985,1e-08,141.94,141.93,18.0686341]
[1764240046185,1e-08,141.94,141.93,25.11436086]
[1764240046385,1e-08,141.94,141.93,22.22123652]
[1764240048183,0.1,141.99,141.97,7.04374163]
[1764240048893,0.66,141.98,141.97,7.04374163]
[1764240049496,3.99751628,141.98,141.9,9.52419683]
[1764240049673,3.33751628,141.93,141.89,2.82236726]
[1764240049877,3.33751628,141.93,141.88,6.43751628]
[1764240050080,0.66,141.92,141.88,6.43751628]
[1764240050278,0.66,141.92,141.88,9.77503256]
[1764240051082,0.66,141.92,141.89,24.66699555]
[1764240051673,0.66,141.92,141.89,28.00451183]
[1764240052687,0.66,141.92,141.89,26.60337738]
[1764240053271,0.66,141.92,141.89,23.2658611]
[1764240055675,0.66,141.92,141.89,20.71928254]
[1764240057699,0.66,141.92,141.89,27.76699555]
[1764240058702,0.66,141.92,141.89,26.54140289]
[1764240061784,0.66,141.92,141.89,25.13589432]
[1764240063200,0.66,141.92,141.89,22.03589432]
[1764240063409,0.66,141.92,141.9,3.1]
[1764240064393,0.66,141.92,141.91,7.04671975]
[1764240064787,0.66,141.92,141.9,3.1]
[1764240066187,0.66,141.92,141.91,7.04671975]
[1764240067886,0.66,141.92,141.9,3.1]
[1764240069409,0.66,141.92,141.9,10.14716932]
[1764240070794,0.66,141.92,141.9,8.5321596]
[1764240073313,0.66,141.92,141.9,11.86967588]
[1764240073891,0.66,141.92,141.9,11.97710568]
[1764240074294,0.66,141.92,141.9,8.6395894]
[1764240076914,0.66,141.92,141.9,11.97710568]
[1764240077111,0.66,141.92,141.9,6.43751628]
[1764240077347,0.66,141.92,141.9,3.1]
[1764240077615,0.66,141.92,141.9,6.43751628]
[1764240077805,0.66,141.92,141.9,3.33751628]
[1764240077993,0.66,141.92,141.9,6.43751628]
[1764240078192,0.66,141.92,141.9,3.1]
[1764240079494,0.66,141.92,141.9,10.3846856]
[1764240079698,0.66,141.92,141.9,13.4846856]
[1764240080099,0.66,141.92,141.9,6.43751628]
[1764240080517,0.66,141.92,141.9,3.1]
[1764240080722,0.66,141.92,141.9,6.43751628]
[1764240081496,0.66,141.92,141.9,13.4846856]
[1764240083122,0.66,141.92,141.9,10.59737431]
[1764240086420,0.66,141.92,141.9,10.3846856]
[1764240087328,28.31880892,141.99,141.91,4.05751628]
[1764240087329,0.66,141.94,141.91,4.05751628]
[1764240087501,0.66,141.94,141.93,3.33751628]
[1764240087825,0.66,141.94,141.91,3.82]
[1764240087826,0.66,141.94,141.92,3.33751628]
[1764240088299,0.66,141.94,141.93,7.04572676]
[1764240089818,0.66,141.94,141.92,3.33751628]
[1764240090608,0.66,141.94,141.91,24.05337465]
[1764240091211,0.66,141.94,141.92,7.04622322]
[1764240091614,0.66,141.94,141.92,10.3837395]
[1764240092720,0.66,141.94,141.92,8.65897073]
[1764240094221,0.66,141.96,141.93,4.05751628]
[1764240094426,0.66,141.96,141.95,3.33751628]
[1764240094623,3.2,141.99,141.95,2.13587608]
[1764240094921,3.2,141.99,141.92,26.03701251]
[1764240094922,0.66,141.98,141.96,2.13587608]
[1764240096313,0.66,141.98,141.97,7.04374163]
[1764240096832,0.1,141.99,141.97,9.17961771]
[1764240097010,0.1,141.99,141.98,2.13587608]
[1764240097209,0.76,141.99,141.98,2.13587608]
[1764240099011,0.76,141.99,141.98,7.77223937]
[1764240100411,0.1,141.99,141.98,8.46223937]
[1764240100615,0.1,141.99,141.98,7.77223937]
[1764240101116,0.1,141.99,141.98,9.1791216]
[1764240101320,0.76,141.99,141.98,9.1791216]
[1764240101906,0.76,141.99,141.98,7.58111161]
[1764240105029,0.76,141.99,141.98,2.13587608]
[1764240107410,0.76,141.99,141.97,7.04374163]
[1764240107611,0.76,141.99,141.98,2.13587608]
[1764240107916,0.76,141.99,141.98,0.50224946]
[1764240108622,0.76,141.99,141.98,7.54549498]
[1764240111110,0.76,141.99,141.98,2.13587608]
[1764240113138,0.76,141.99,141.98,9.1791216]
[1764240116842,0.1,141.99,141.98,9.8691216]
[1764240117136,0.1,141.99,141.98,7.55955701]
[1764240120223,0.1,141.99,141.98,2.13587608]
[1764240121518,0.1,141.99,141.98,9.1791216]
[1764240123022,0.76,141.99,141.98,7.04324552]
[1764240123241,0.76,141.99,141.98,9.1791216]
[1764240123447,0.76,141.99,141.98,7.50437063]
[1764240123650,0.1,141.99,141.98,7.50437063]
[1764240123836,0.1,141.99,141.98,8.19437063]
[1764240124642,0.1,141.99,141.98,7.50437063]
[1764240126753,0.1,141.99,141.98,2.13587608]
[1764240128445,0.1,141.99,141.98,9.1791216]
[1764240129031,0.1,141.99,141.98,9.8691216]
[1764240129227,0.1,141.99,141.98,11.9996977]
[1764240129451,0.1,141.99,141.98,9.1791216]
[1764240129650,0.1,141.99,141.98,7.54995719]
[1764240132156,0.1,141.99,141.98,10.37053329]
[1764240132830,0.1,141.99,141.98,4.95645218]
[1764240133550,0.1,141.99,141.98,2.13587608]
[1764240134649,0.1,141.99,141.98,9.1791216]
[1764240135830,0.1,141.99,141.98,7.54778162]
[1764240136241,0.1,141.99,141.98,10.36835772]
[1764240138960,0.1,141.99,141.98,11.08776668]
[1764240141360,0.1,141.99,141.98,8.9518906]
[1764240141660,0.76,141.99,141.98,6.1313145]
[1764240141860,0.76,141.99,141.97,16.308864]
[1764240142438,0.76,141.99,141.97,18.44474008]
[1764240142661,0.76,141.99,141.97,2.13587608]
[1764240143534,0.76,141.99,141.98,7.04324552]
[1764240145066,0.76,141.99,141.98,5.78867517]
[1764240146645,0.76,141.99,141.97,2.13587608]
[1764240148039,0.76,141.99,141.98,7.04324552]
[1764240151158,0.76,141.99,141.97,0.62598049]
[1764240152452,0.76,141.99,141.98,7.04324552]
[1764240154243,0.76,141.99,141.97,0.62598049]
[1764240154750,0.76,141.99,141.97,3.3359692]
[1764240155767,0.76,141.99,141.98,7.04324552]
[1764240157646,0.76,141.99,141.97,3.3359692]
[1764240158772,0.76,141.99,141.98,7.04324552]
[1764240159369,0.1,141.99,141.98,10.37921472]
[1764240159748,0.76,141.99,141.98,10.37921472]
[1764240160777,0.76,141.99,141.98,9.34257494]
[1764240163773,0.76,141.99,141.98,3.3359692]
[1764240164381,0.76,141.99,141.96,24.35054314]
[1764240164565,0.76,141.99,141.98,3.3359692]
[1764240166280,0.1,142.0,141.98,26.68807872]
[1764240166481,0.1,142.08,142.06,25.11880892]
[1764240166656,0.1,142.08,142.06,53.19385908]
[1764240166858,1e-08,142.07,142.06,50.71269268]
[1764240167171,1e-08,142.07,142.06,28.79200171]
[1764240167578,1e-08,142.07,142.06,35.83128088]
[1764240167778,0.1,142.08,142.06,35.83128088]
[1764240167956,0.1,142.08,142.07,3.3359692]
[1764240168456,0.1,142.08,142.07,6.15435919]
[1764240169383,0.68,142.11,142.08,8.80994492]
[1764240169580,0.68,142.11,142.1,3.3359692]
[1764240169777,0.68,142.11,142.1,10.37326687]
[1764240170082,0.68,142.11,142.1,16.52762606]
[1764240171985,0.68,142.11,142.1,9.85568766]
[1764240172159,0.68,142.11,142.1,13.19165686]
[1764240172754,3.78,142.11,142.1,13.19165686]
[1764240172958,3.78,142.11,142.1,6.15435919]
[1764240174854,0.1,142.12,142.1,6.15435919]
[1764240175058,3.1,142.11,142.1,2.81838999]
[1764240175279,3.1,142.11,142.1,3.3359692]
[1764240175480,0.1,142.12,142.1,9.7719384]
[1764240175788,0.1,142.12,142.11,3.3359692]
[1764240175966,0.78,142.12,142.1,3.1]
[1764240176167,0.78,142.12,142.03,96.57233612]
[1764240176168,7.81635702,142.12,142.03,38.53952416]
[1764240176497,7.81635702,142.12,142.07,3.1]
[1764240176660,0.68,142.11,142.07,3.1]
[1764240177076,4.0159692,142.11,142.07,3.1]
[1764240177272,0.68,142.11,142.07,3.1]
[1764240177462,0.68,142.1,142.07,3.1]
[1764240178081,0.68,142.1,142.08,7.03828828]
[1764240178963,0.68,142.1,142.07,3.1]
[1764240180397,3.1,142.09,142.08,7.03828828]
[1764240180574,3.1,142.09,142.08,10.37425748]
[1764240180973,3.1,142.09,142.08,13.47425748]
[1764240181814,0.68,142.1,142.08,13.47425748]
[1764240182091,3.1,142.09,142.08,9.04373855]
[1764240183278,0.68,142.11,142.08,29.97542847]
[1764240183460,3.1,142.09,142.08,26.63945927]
[1764240184659,3.1,142.09,142.08,29.97542847]
[1764240185265,3.1,142.09,142.08,24.03168992]
[1764240187569,3.1,142.09,142.08,27.9699782]
[1764240188183,3.1,142.09,142.08,26.08686369]
[1764240189373,3.1,142.09,142.08,34.89680861]
[1764240190108,0.77,142.12,142.09,8.80994492]
[1764240190278,3.1,142.1,142.08,22.75089449]
[1764240190483,3.1,142.1,142.08,26.08686369]
[1764240190684,0.67,142.09,142.08,26.08686369]
[1764240191395,0.67,142.09,142.08,24.75750115]
[1764240194503,0.67,142.09,142.08,10.37425748]
[1764240195502,0.67,142.09,142.08,27.9699782]
[1764240197388,0.67,142.09,142.08,26.83101521]
[1764240198301,0.67,142.09,142.08,23.49504601]
[1764240200388,0.67,142.09,142.08,17.59572072]
[1764240201203,0.67,142.09,142.08,20.93168992]
[1764240201521,0.67,142.09,142.08,27.9699782]
[1764240202912,0.67,142.09,142.08,24.634009]
[1764240203113,0.67,142.09,142.08,27.9699782]
[1764240203415,0.67,142.09,142.08,25.29781685]
[1764240206511,0.67,142.09,142.08,10.37425748]
[1764240208099,0.67,142.09,142.08,27.9699782]
[1764240209626,0.67,142.09,142.08,26.48125366]
[1764240211424,0.67,142.09,142.08,23.14528446]
[1764240211615,0.67,142.09,142.08,26.48125366]
[1764240212622,0.67,142.09,142.08,20.93168992]
[1764240213702,0.67,142.09,142.08,27.9699782]
[1764240214612,0.67,142.09,142.08,26.76550676]
[1764240215624,0.67,142.09,142.08,25.28595274]
[1764240215819,0.67,142.09,142.08,23.15445498]
[1764240216022,0.67,142.09,142.08,25.28595274]
[1764240218728,0.67,142.09,142.08,23.20245381]
[1764240220826,3.77,142.09,142.08,23.20245381]
[1764240222137,3.77,142.09,142.08,9.16978604]
[1764240223532,3.77,142.09,142.08,26.76550676]
[1764240224826,0.1,142.12,142.08,26.76550676]
[1764240225013,0.78,142.12,142.11,0.36182862]
[1764240225335,3.88,142.12,142.11,2.13149776]
[1764240226519,3.88,142.12,142.11,9.16830023]
[1764240227127,0.1,142.12,142.11,9.16830023]
[1764240227334,0.1,142.12,142.11,17.97824515]
[1764240227910,1e-08,142.12,142.11,17.97824515]
[1764240228141,1e-08,142.12,142.11,16.79564542]
[1764240231344,1e-08,142.12,142.11,17.90032527]
[1764240231918,0.1,142.14,142.13,16.308864]
[1764240232219,1e-08,142.14,142.13,2.13149776]
[1764240232620,1e-08,142.14,142.13,17.97725496]
[1764240232837,1e-08,142.14,142.13,34.28611896]
[1764240234332,1e-08,142.14,142.13,34.23418283]
[1764240235951,0.1,142.15,142.13,34.23418283]
[1764240236257,0.1,142.15,142.14,2.13149776]
[1764240237357,0.1,142.15,142.14,7.32777763]
[1764240240447,0.1,142.15,142.14,7.97701832]
[1764240243451,3.2,142.22,142.2,0.62502468]
[1764240243748,3.2,142.22,142.21,2.13149776]
[1764240244248,3.2,142.22,142.21,9.16335205]
[1764240244449,3.88,142.22,142.21,9.16335205]
[1764240245528,0.78,142.22,142.21,9.16335205]
[1764240245724,3.88,142.22,142.21,9.16335205]
[1764240246337,3.88,142.22,142.21,7.03185429]
[1764240246536,3.88,142.22,142.21,8.01785367]
[1764240249544,3.88,142.22,142.21,2.13149776]
[1764240250755,3.88,142.22,142.21,9.16335205]
[1764240251655,3.88,142.22,142.21,7.03185429]
[1764240252544,3.88,142.22,142.17,33.37085432]
[1764240252545,0.68,142.21,142.17,33.37085432]
[1764240252731,0.68,142.21,142.17,35.50235208]
[1764240252938,3.1,142.2,142.18,26.74818083]
[1764240253348,0.68,142.19,142.18,26.74818083]
[1764240255557,0.68,142.19,142.18,23.77412918]
[1764240255739,0.68,142.19,142.18,19.71484281]
[1764240256454,0.68,142.19,142.17,2.13149776]
[1764240257443,3.1,142.18,142.17,2.13149776]
[1764240258059,3.81,142.18,142.17,2.13149776]
[1764240258440,3.81,142.18,142.17,9.16533049]
[1764240258641,3.81,142.18,142.17,7.1128823]
[1764240258849,3.81,142.18,142.17,7.03383273]
[1764240259054,3.81,142.18,142.17,9.16533049]
[1764240261263,3.81,142.18,142.16,7.03420549]
[1764240261451,0.71,142.17,142.13,2.13149776]
[1764240261647,2.84149776,142.17,142.12,24.62656254]
[1764240261852,2.84149776,142.17,142.12,19.72175296]
[1764240262053,0.71,142.16,142.12,19.72175296]
[1764240263464,0.71,142.16,142.12,26.7580603]
[1764240264149,1.84149776,142.17,142.12,26.7580603]
[1764240264581,2.13149776,142.2,142.15,2.13149776]
[1764240264862,3.1,142.16,142.15,0.82200356]
[1764240265046,2.13149776,142.2,142.15,0.82200356]
[1764240265249,3.1,142.19,142.15,0.82200356]
[1764240265568,3.1,142.19,142.16,7.03432751]
[1764240265961,5.23149776,142.19,142.16,7.03432751]
[1764240266267,0.71,142.18,142.16,7.03432751]
[1764240266769,3.1,142.17,142.16,7.03432751]
[1764240266964,3.1,142.17,142.12,33.89890963]
[1764240267171,0.71,142.16,142.12,36.03040739]
[1764240267547,0.71,142.16,142.12,43.06671473]
[1764240267746,3.1,142.15,142.12,43.06671473]
[1764240267956,3.1,142.15,142.12,41.48238678]
[1764240268154,3.81,142.15,142.12,41.48238678]
[1764240268362,0.71,142.14,142.12,41.48238678]
[1764240270071,0.71,142.14,142.13,2.13149776]
[1764240270271,0.71,142.14,142.12,39.35088902]
[1764240270478,0.71,142.14,142.13,2.13149776]
[1764240270851,0.71,142.14,142.13,0.88475254]
[1764240271271,3.81,142.15,142.13,0.88475254]
[1764240272071,3.81,142.15,142.14,7.03531729]
[1764240273960,3.81,142.15,142.12,34.44607944]
[1764240274273,0.71,142.14,142.12,34.44607944]
[1764240274460,3.81,142.15,142.13,2.13149776]
[1764240274965,3.81,142.15,142.14,2.13149776]
[1764240275554,3.81,142.15,142.13,9.16731004]
[1764240275773,0.71,142.14,142.13,9.16731004]
[1764240276676,0.71,142.14,142.13,10.36395535]
[1764240277165,0.71,142.14,142.13,3.32814307]
[1764240278176,0.71,142.14,142.13,10.36395535]
[1764240278980,3.1,142.15,142.13,10.36395535]
[1764240279166,0.71,142.15,142.13,10.36395535]
[1764240279352,3.1,142.14,142.13,10.36395535]
[1764240279756,3.81,142.14,142.13,10.36395535]
[1764240280168,3.81,142.14,142.13,7.03581228]
[1764240280381,3.81,142.14,142.13,5.33354606]
[1764240281688,3.81,142.14,142.11,3.32814307]
[1764240281899,3.81,142.14,142.12,7.03612207]
[1764240281900,0.72,142.13,142.12,7.03612207]
[1764240282572,3.1,142.14,142.12,10.36426514]
[1764240282774,3.82,142.14,142.13,3.32814307]
[1764240283077,3.82,142.14,142.12,10.36426514]
[1764240283477,3.82,142.14,142.12,8.88731595]
[1764240283680,0.72,142.14,142.12,8.88731595]
[1764240283880,3.1,142.13,142.12,8.88731595]
[1764240284065,0.72,142.14,142.12,8.88731595]
[1764240284271,3.1,142.13,142.12,8.88731595]
[1764240285587,3.82,142.15,142.12,35.98802923]
[1764240285887,3.82,142.15,142.13,3.32814307]
[1764240286462,3.82,142.15,142.12,31.95988616]
[1764240286664,3.82,142.15,142.13,3.32814307]
[1764240287166,3.82,142.15,142.14,3.32814307]
[1764240287689,3.82,142.15,142.13,3.32814307]
[1764240287881,3.82,142.15,142.14,7.03531729]
[1764240289689,3.82,142.15,142.14,5.45230365]
[1764240292569,3.82,142.15,142.13,3.32814307]
[1764240293682,3.1,142.15,142.14,10.36346036]
[1764240294285,3.82,142.15,142.14,10.36346036]
[1764240294674,3.82,142.15,142.14,7.03531729]
[1764240295587,3.82,142.15,142.13,3.32814307]
[1764240296089,0.72,142.15,142.13,3.32814307]
[1764240296288,3.1,142.14,142.13,3.32814307]
[1764240296483,3.1,142.14,142.13,4.02814307]
[1764240296688,3.1,142.14,142.13,10.36395535]
[1764240296875,3.1,142.14,142.13,11.06395535]
[1764240298270,10.36105427,142.19,142.13,27.95348606]
[1764240298471,0.72,142.15,142.13,27.95348606]
[1764240298788,0.72,142.15,142.13,26.53458977]
[1764240299476,3.1,142.14,142.13,27.23458977]
[1764240299988,3.1,142.14,142.13,26.53458977]
[1764240300189,3.82,142.14,142.13,7.03581228]
[1764240300392,3.82,142.14,142.1,7.03729767]
[1764240300599,0.72,142.13,142.1,7.03729767]
[1764240300899,0.72,142.13,142.1,10.36544074]
[1764240301278,0.72,142.13,142.1,27.95868493]